bitfinex-derivatives/quotes_ETHF0:USTF0_20250701
["timestamp","ask_amount","ask_price","bid_price","bid_amount"]
[1751331402778,1.0309,2493.4,2493.2,0.80195]
[1751331402974,1.83281,2493.4,2493.3,1.0242]
[1751331403174,26.18981,2493.4,2493.3,5.3042]
[1751331403679,1.83281,2493.4,2493.3,6.10615]
[1751331403975,26.18981,2493.4,2493.3,6.10615]
[1751331405178,26.18981,2493.4,2493.3,5.71498138]
[1751331406381,26.18981,2493.4,2493.3,4.91303138]
[1751331407176,26.18981,2493.4,2493.3,5.71498138]
[1751331407982,26.18981,2493.4,2493.3,4.91303138]
[1751331408179,1.83281,2493.4,2493.3,5.71498138]
[1751331408482,25.3849,2493.4,2493.3,5.71498138]
[1751331409579,4.0097,2493.5,2493.4,0.80191]
[1751331409777,28.3637,2493.5,2493.4,2.37191]
[1751331409977,28.3637,2493.5,2493.4,1.57]
[1751331410379,28.3637,2493.5,2493.4,2.37191]
[1751331410585,0.8019,2493.5,2493.4,2.37191]
[1751331410781,25.1549,2493.5,2493.4,2.37191]
[1751331413587,0.80191,2493.4,2493.3,0.63303138]
[1751331413883,0.80191,2493.4,2493.3,1.58]
[1751331414079,0.80195,2493.3,2493.2,0.80196]
[1751331414274,1.86455,2493.3,2493.2,4.79196]
[1751331415187,1.86455,2493.3,2493.2,3.99]
[1751331415483,0.80198,2493.2,2493.1,1.82408]
[1751331415686,0.80198,2493.2,2493.1,7.99408]
[1751331415885,1.86456,2493.3,2493.2,0.80198]
[1751331416279,1.86456,2493.3,2493.2,2.97198]
[1751331416787,1.0626,2493.3,2493.2,2.97198]
[1751331416982,1.86455,2493.3,2493.2,2.97198]
[1751331417287,0.80192,2493.4,2493.3,0.80191]
[1751331417580,0.80192,2493.4,2493.3,6.42191]
[1751331418785,25.15192,2493.4,2493.3,6.42191]
[1751331422990,0.80192,2493.4,2493.3,6.42191]
[1751331423289,25.14992,2493.4,2493.3,6.42191]
[1751331427492,0.80198,2493.2,2493.1,1.0221]
[1751331427687,0.80198,2493.2,2493.1,7.0321]
[1751331427990,0.80198,2493.2,2493.1,7.83408]
[1751331429289,1.85787,2493.3,2493.2,0.80198]
[1751331429489,1.85787,2493.3,2493.2,7.18198]
[1751331434191,1.85785,2493.3,2493.2,7.18198]
[1751331439104,1.85785,2493.3,2493.2,6.38]
[1751331439301,4.1209884,2493.3,2493.2,7.18198]
[1751331439800,4.1209884,2493.3,2493.2,6.38]
[1751331440201,4.1209884,2493.3,2493.2,7.18198]
[1751331443602,4.1209884,2493.3,2493.2,0.80198]
[1751331444099,4.1209884,2493.3,2493.2,2.84198]
[1751331444301,4.1209884,2493.3,2493.2,0.80198]
[1751331444602,4.1209884,2493.3,2493.2,2.92198]
[1751331444798,1.85785,2493.3,2493.2,2.83198]
[1751331445491,1.0559,2493.3,2493.2,2.83198]
[1751331446397,1.85785,2493.3,2493.2,2.83198]
[1751331448598,0.80192,2493.4,2493.3,0.80195]
[1751331448799,0.80192,2493.4,2493.3,6.80195]
[1751331448998,25.14392,2493.4,2493.3,8.15295]
[1751331449304,24.342,2493.4,2493.3,8.15295]
[1751331449705,25.14391,2493.4,2493.3,8.15295]
[1751331453902,25.14391,2493.4,2493.3,6.0]
[1751331454101,0.80198,2493.2,2493.1,1.0221]
[1751331454308,0.80198,2493.2,2493.1,4.10411]
[1751331454606,2.00495,2493.2,2492.9,6.26759599]
[1751331454807,3.0651784,2493.0,2492.9,1.26256599]
[1751331455003,3.0651784,2493.0,2492.9,0.86207]
[1751331456410,3.0651784,2493.0,2492.9,0.06]
[1751331457108,3.0651784,2493.0,2492.9,0.86207]
[1751331457310,3.0651784,2493.0,2492.9,0.06]
[1751331458704,3.0651784,2493.0,2492.9,0.86207]
[1751331459208,3.0651784,2493.0,2492.9,0.06]
[1751331463213,3.0651784,2493.0,2492.9,0.86207]
[1751331465513,0.80204,2493.0,2492.9,0.86207]
[1751331465914,0.80204,2493.0,2492.9,0.06]
[1751331466815,25.14104,2493.0,2492.9,0.06]
[1751331468213,25.14104,2493.0,2492.9,0.86207]
[1751331468414,25.14104,2493.0,2492.9,0.06]
[1751331470116,25.14104,2493.0,2492.9,0.86207]
[1751331470311,25.14104,2493.0,2492.9,0.06]
[1751331472216,27.4041784,2493.0,2492.9,0.06]
[1751331474115,0.80211,2492.8,2492.7,0.80214]
[1751331474417,3.0652484,2492.8,2492.7,2.96214]
[1751331475211,0.80211,2492.8,2492.7,2.96214]
[1751331479524,0.80211,2492.8,2492.7,4.28074]
[1751331481025,25.13811,2492.8,2492.7,2.96213]
[1751331482626,0.80211,2492.9,2492.8,0.80207]
[1751331482828,25.13811,2492.9,2492.8,2.56207]
[1751331483021,25.13811,2492.9,2492.8,3.86337]
[1751331485129,24.336,2492.9,2492.8,3.86337]
[1751331485622,0.80207,2493.0,2492.9,0.80207]
[1751331485825,0.80204,2493.0,2492.9,6.53207]
[1751331486023,25.13704,2493.0,2492.9,8.92587]
[1751331489030,25.13704,2493.0,2492.9,6.7689]
[1751331489229,25.13704,2493.0,2492.9,7.57097]
[1751331494234,25.13704,2493.0,2492.9,1.84097]
[1751331494434,25.13704,2493.0,2492.9,2.16097]
[1751331495243,25.13704,2493.0,2492.9,1.84097]
[1751331495446,25.13704,2493.0,2492.9,4.09097]
[1751331495644,25.13704,2493.0,2492.9,2.20097]
[1751331496139,25.13704,2493.0,2492.9,1.84097]
[1751331496447,25.13704,2493.0,2492.9,4.08097]
[1751331496646,25.13704,2493.0,2492.9,0.80207]
[1751331496937,25.13704,2493.0,2492.9,2.63207]
[1751331498243,25.13704,2493.0,2492.9,1.83]
[1751331498443,25.13704,2493.0,2492.9,2.63207]
[1751331499145,24.335,2493.0,2492.8,0.80209]
[1751331499445,24.335,2493.0,2492.8,2.72209]
[1751331499947,0.80207,2492.9,2492.8,2.72209]
[1751331502548,0.80207,2492.9,2492.8,4.13409]
[1751331504944,25.13107,2492.9,2492.8,4.13409]
[1751331508358,24.329,2492.9,2492.8,4.13409]
[1751331509253,0.80207,2492.9,2492.8,4.13409]
[1751331517866,0.80207,2492.9,2492.8,2.72209]
[1751331520364,1.0529,2493.1,2493.0,0.80204]
[1751331520565,24.323,2493.3,2493.2,0.80196]
[1751331520765,4.00642497,2493.5,2493.2,6.30624008]
[1751331520965,28.32942497,2493.5,2493.4,0.80191]
[1751331521164,25.1249,2493.5,2493.4,5.79075797]
[1751331522269,0.8019,2493.5,2493.4,5.79075797]
[1751331522470,25.1249,2493.5,2493.4,5.79075797]
[1751331522870,0.8019,2493.5,2493.4,5.79075797]
[1751331523169,25.1239,2493.5,2493.4,5.79075797]
[1751331527277,25.1239,2493.5,2493.4,5.38]
[1751331527474,0.80191,2493.4,2493.3,0.80191]
[1751331527670,0.80191,2493.4,2493.3,4.79191]
[1751331528777,25.1239,2493.5,2493.4,0.80191]
[1751331529576,25.1239,2493.5,2493.4,2.86191]
[1751331529773,25.1239,2493.5,2493.4,0.80191]
[1751331530680,25.1239,2493.5,2493.4,3.14191]
[1751331530978,25.1239,2493.5,2493.4,0.80191]
[1751331531177,25.1239,2493.5,2493.4,2.90191]
[1751331531572,25.1239,2493.5,2493.4,3.17191]
[1751331531775,25.1239,2493.5,2493.4,0.80191]
[1751331532479,25.1239,2493.5,2493.4,3.17191]
[1751331532780,27.38895232,2493.5,2493.4,0.80191]
[1751331533081,0.80195,2493.4,2493.3,0.80192]
[1751331533279,0.80195,2493.4,2493.3,6.12192]
[1751331535683,5.00637,2493.6,2493.5,0.80188]
[1751331535884,5.00637,2493.6,2493.5,2.47188]
[1751331536085,29.32037,2493.6,2493.5,2.47188]
[1751331536779,4.2045,2493.6,2493.5,2.47188]
[1751331536980,1.0187,2493.8,2493.7,0.80182]
[1751331537182,26.3056,2493.8,2493.7,4.97182]
[1751331537884,1.9916,2493.8,2493.7,4.97182]
[1751331538086,26.3046,2493.8,2493.7,4.97182]
[1751331538481,27.10638,2493.8,2493.7,4.97182]
[1751331539680,27.10638,2493.8,2493.7,4.17]
[1751331539883,0.80182,2493.7,2493.6,0.80183]
[1751331540379,0.80182,2493.7,2493.6,3.08183]
[1751331540776,3.06687232,2493.7,2493.6,2.28]
[1751331540982,3.06687232,2493.7,2493.6,3.08185]
[1751331541688,0.80182,2493.7,2493.6,3.08185]
[1751331543387,0.80182,2493.7,2493.6,0.80185]
[1751331543588,0.80182,2493.7,2493.6,3.12185]
[1751331543887,0.80182,2493.7,2493.6,0.80185]
[1751331544291,0.80182,2493.7,2493.6,1.15185]
[1751331544589,0.80182,2493.7,2493.6,0.87185]
[1751331544885,27.1064,2493.8,2493.7,0.80182]
[1751331545086,4.00957,2493.9,2493.8,0.80178]
[1751331545287,28.31857,2493.9,2493.8,3.00178]
[1751331545489,28.31857,2493.9,2493.8,0.80178]
[1751331545789,27.5168,2493.9,2493.8,2.79178]
[1751331545989,3.2078,2493.9,2493.8,2.79178]
[1751331546191,27.5158,2493.9,2493.8,2.79178]
[1751331546998,28.31755,2493.9,2493.8,2.79178]
[1751331547390,0.80178,2493.8,2493.7,0.8018]
[1751331547591,3.06683232,2493.8,2493.7,3.1218]
[1751331548187,0.80188,2493.6,2493.5,0.80186]
[1751331548392,25.10988,2493.6,2493.5,2.93186]
[1751331550794,25.10985,2493.6,2493.5,2.93186]
[1751331555696,24.308,2493.6,2493.5,2.93186]
[1751331555892,25.10985,2493.6,2493.5,2.93186]
[1751331556101,24.308,2493.6,2493.5,2.93186]
[1751331556407,25.10985,2493.6,2493.5,2.93186]
[1751331556599,1.0155,2493.7,2493.6,0.80185]
[1751331556795,3.2078,2493.9,2493.8,0.80178]
[1751331557000,27.5118,2493.9,2493.8,2.63178]
[1751331558004,28.31355,2493.9,2493.8,3.29178]
[1751331558206,28.31355,2493.9,2493.8,0.80178]
[1751331558905,28.31355,2493.9,2493.8,3.02178]
[1751331559205,28.31355,2493.9,2493.8,1.15178]
[1751331559404,28.31355,2493.9,2493.8,1.25178]
[1751331564705,4.00955,2493.9,2493.8,1.25178]
[1751331564894,3.2078,2493.9,2493.8,1.25178]
[1751331565094,6.41232497,2494.2,2493.9,2.00435]
[1751331565302,3.20452497,2494.3,2494.2,0.80166]
[1751331565495,27.50552497,2494.3,2494.2,6.37166]
[1751331566405,3.20452497,2494.4,2494.3,0.80162]
[1751331566608,27.50452497,2494.4,2494.3,4.95060821]
[1751331568901,3.20452497,2494.4,2494.3,4.95060821]
[1751331569100,24.297,2494.4,2494.3,4.95060821]
[1751331569903,4.1752,2494.5,2494.4,0.80159]
[1751331570207,27.5048,2494.5,2494.4,4.88159]
[1751331570505,25.2772,2494.7,2494.6,0.80153]
[1751331570804,4.00923,2494.9,2494.8,0.80146]
[1751331571008,28.485,2494.9,2494.8,2.07]
[1751331571211,29.28643,2494.9,2494.8,2.87146]
[1751331571402,29.28643,2494.9,2494.8,0.80146]
[1751331571608,31.55148232,2494.9,2494.8,0.80146]
[1751331571908,31.55148232,2494.9,2494.8,2.79146]
[1751331572211,34.74851227,2494.9,2494.8,2.79146]
[1751331572509,34.74851227,2494.9,2494.8,2.90146]
[1751331572905,0.80146,2494.8,2494.7,0.80148]
[1751331573109,0.80146,2494.8,2494.7,3.11148]
[1751331573302,25.09546,2494.8,2494.7,3.11148]
[1751331573499,24.294,2494.8,2494.7,3.11148]
[1751331574204,24.294,2494.8,2494.7,0.80148]
[1751331574400,25.09546,2494.8,2494.7,3.13148]
[1751331574806,25.09546,2494.8,2494.7,0.80148]
[1751331575006,25.09546,2494.8,2494.7,2.72148]
[1751331575207,24.294,2494.8,2494.7,0.80148]
[1751331575408,24.294,2494.8,2494.7,2.96148]
[1751331576412,25.09546,2494.8,2494.7,2.96148]
[1751331577515,24.294,2494.8,2494.7,2.96148]
[1751331578114,24.294,2494.8,2494.7,1.19148]
[1751331578715,25.09546,2494.8,2494.7,1.19148]
[1751331579116,26.55905232,2494.8,2494.3,3.2078]
[1751331579415,2.26505232,2494.6,2494.5,0.80156]
[1751331579615,27.35658232,2494.6,2494.5,5.35156]
[1751331580809,27.35658232,2494.6,2494.5,0.80156]
[1751331581511,0.80156,2494.5,2494.4,1.79926]
[1751331581707,27.35660232,2494.6,2494.5,0.80156]
[1751331581910,27.35660232,2494.6,2494.5,2.84156]
[1751331582315,27.35660232,2494.6,2494.5,0.80156]
[1751331582616,27.35660232,2494.6,2494.5,2.81156]
[1751331582805,24.29,2494.6,2494.5,3.02156]
[1751331583011,24.288,2494.6,2494.5,3.02156]
[1751331584517,24.288,2494.6,2494.5,4.45446]
[1751331588019,24.288,2494.6,2494.5,3.02156]
[1751331588722,25.08953,2494.6,2494.5,3.02156]
[1751331588922,25.08953,2494.6,2494.5,2.80156]
[1751331589122,27.35458232,2494.6,2494.5,2.80156]
[1751331589321,27.35458232,2494.6,2494.5,2.87156]
[1751331589712,27.35458232,2494.6,2494.5,0.80156]
[1751331590121,27.35458232,2494.6,2494.5,2.82156]
[1751331591218,0.80159,2494.5,2494.4,0.80157]
[1751331591414,25.08953,2494.6,2494.5,0.80156]
[1751331591621,25.08953,2494.6,2494.5,2.95156]
[1751331591823,25.08953,2494.6,2494.5,3.10156]
[1751331592319,0.80156,2494.5,2494.4,0.80158]
[1751331592527,0.80156,2494.5,2494.4,0.84158]
[1751331593223,0.80156,2494.5,2494.4,0.80158]
[1751331593420,0.80156,2494.5,2494.4,3.02158]
[1751331594122,0.80156,2494.5,2494.4,0.80158]
[1751331594324,0.80156,2494.5,2494.4,2.93158]
[1751331594521,0.80156,2494.5,2494.4,2.94158]
[1751331599131,0.80156,2494.5,2494.4,2.14]
[1751331599322,0.80159,2494.4,2494.3,0.8016]
[1751331599527,3.06664232,2494.4,2494.3,2.9916]
[1751331600020,3.06664232,2494.4,2494.3,0.8016]
[1751331600225,1.80309,2494.4,2494.3,0.8016]
[1751331600425,1.0015,2494.4,2494.3,2.7516]
[1751331600725,1.80309,2494.4,2494.3,0.8316]
[1751331601031,1.0015,2494.4,2494.3,0.8316]
[1751331601224,8.23357995,2494.6,2494.5,0.80156]
[1751331601425,8.23357995,2494.6,2494.5,2.86156]
[1751331601426,29.31855,2494.6,2494.5,2.86156]
[1751331601620,5.03655,2494.6,2494.5,2.86156]
[1751331601825,3.2078,2494.6,2494.5,2.50156]
[1751331602031,27.4898,2494.6,2494.5,2.50156]
[1751331602228,24.282,2494.6,2494.5,3.88886]
[1751331604425,24.282,2494.7,2494.6,0.80153]
[1751331604622,24.282,2494.7,2494.6,5.55353]
[1751331604826,25.0835,2494.7,2494.6,4.26153]
[1751331605027,24.282,2494.7,2494.6,4.26153]
[1751331605333,0.80148,2494.8,2494.7,0.8015]
[1751331605529,25.08348,2494.8,2494.7,2.4615]
[1751331606126,0.8015,2494.7,2494.6,0.80152]
[1751331606331,0.80162,2494.3,2494.2,1.20256599]
[1751331606524,27.34767232,2494.3,2494.2,0.92]
[1751331606729,27.34767232,2494.3,2494.0,1.20256599]
[1751331606730,26.54605232,2494.3,2494.0,0.80172]
[1751331606931,0.80172,2494.0,2493.9,1.20256599]
[1751331607131,0.80172,2494.0,2493.9,1.23256599]
[1751331608335,0.80172,2494.0,2493.9,0.03]
[1751331608531,0.80172,2494.0,2493.9,0.83173]
[1751331609331,4.2528,2494.2,2494.1,0.80169]
[1751331609332,5.05448,2494.2,2494.1,0.80169]
[1751331609637,5.05448,2494.2,2494.1,2.78169]
[1751331610036,0.80172,2494.1,2493.8,2.4605]
[1751331610236,0.80172,2494.1,2494.0,0.80172]
[1751331610537,5.05447,2494.2,2494.1,0.80169]
[1751331610730,29.33647,2494.2,2494.1,0.80169]
[1751331610931,26.12867,2494.2,2494.1,1.18169]
[1751331611126,3.2078,2494.5,2494.1,2.64505232]
[1751331611335,27.4898,2494.5,2494.4,0.80159]
[1751331611538,27.4898,2494.5,2494.4,4.18159]
[1751331611737,28.29136,2494.5,2494.4,4.18159]
[1751331612641,28.29136,2494.5,2494.4,0.80159]
[1751331613334,28.29136,2494.5,2494.4,2.87159]
[1751331613641,25.08456,2494.5,2494.4,0.80159]
[1751331614238,25.08456,2494.5,2494.4,2.80159]
[1751331614440,25.08456,2494.5,2494.4,0.80159]
[1751331614641,25.08456,2494.5,2494.4,3.07159]
[1751331614940,25.08456,2494.5,2494.4,2.93159]
[1751331615834,24.283,2494.5,2494.4,2.50159]
[1751331616537,0.80147,2494.8,2494.7,0.8015]
[1751331616739,25.08347,2494.8,2494.7,2.3915]
[1751331617541,0.8015,2494.7,2494.6,1.0147]
[1751331617934,0.8015,2494.7,2494.6,4.18623]
[1751331619140,0.8015,2494.7,2494.6,1.81623]
[1751331619439,0.8015,2494.7,2494.6,3.84623]
[1751331619943,0.8015,2494.7,2494.6,1.81623]
[1751331620330,0.8015,2494.7,2494.6,4.07623]
[1751331620534,0.8015,2494.7,2494.6,3.95623]
[1751331620739,25.08348,2494.8,2494.7,0.8015]
[1751331621041,25.08348,2494.8,2494.7,3.0115]
[1751331621236,25.08348,2494.8,2494.7,2.8515]
[1751331621441,25.08348,2494.8,2494.7,3.0015]
[1751331621742,25.08348,2494.8,2494.7,2.7215]
[1751331621943,25.08348,2494.8,2494.7,3.1715]
[1751331622140,25.08348,2494.8,2494.7,3.1415]
[1751331622537,25.08348,2494.8,2494.7,0.8015]
[1751331622744,25.08348,2494.8,2494.7,3.1715]
[1751331623643,25.08348,2494.8,2494.7,0.8015]
[1751331624140,25.08348,2494.8,2494.7,3.1415]
[1751331625043,25.08348,2494.8,2494.7,0.8015]
[1751331625243,25.08348,2494.8,2494.7,3.0715]
[1751331625542,25.08348,2494.8,2494.7,3.1315]
[1751331626142,25.08348,2494.8,2494.7,2.7915]
[1751331626344,25.08348,2494.8,2494.7,0.8015]
[1751331626538,25.08348,2494.8,2494.7,2.7515]
[1751331626844,25.08348,2494.8,2494.7,0.8015]
[1751331627046,25.08348,2494.8,2494.7,2.9615]
[1751331627545,25.08348,2494.8,2494.7,2.9815]
[1751331628043,25.08348,2494.8,2494.7,0.8015]
[1751331628445,25.08348,2494.8,2494.7,2.8815]
[1751331629447,24.282,2494.8,2494.7,0.8015]
[1751331629646,25.08346,2494.8,2494.7,2.7915]
[1751331629843,24.282,2494.8,2494.7,2.7915]
[1751331630342,24.282,2494.8,2494.7,3.0315]
[1751331631348,24.282,2494.8,2494.7,0.8015]
[1751331631650,25.08346,2494.8,2494.7,0.8015]
[1751331631847,25.08346,2494.8,2494.7,3.0015]
[1751331632248,24.282,2494.8,2494.7,3.0015]
[1751331632943,25.08346,2494.8,2494.7,3.0015]
[1751331633149,25.08346,2494.8,2494.7,0.8015]
[1751331633347,25.08346,2494.8,2494.7,3.1015]
[1751331633547,25.08346,2494.8,2494.7,0.8015]
[1751331633945,25.08346,2494.8,2494.7,3.1415]
[1751331634247,25.08346,2494.8,2494.7,3.0115]
[1751331634450,24.282,2494.8,2494.7,3.0115]
[1751331636249,25.08346,2494.8,2494.7,3.0115]
[1751331636448,25.08346,2494.8,2494.7,0.8015]
[1751331636645,25.08346,2494.8,2494.7,2.7615]
[1751331637649,25.08346,2494.8,2494.7,0.8015]
[1751331637848,25.08346,2494.8,2494.7,2.9315]
[1751331638049,25.08346,2494.8,2494.7,0.8015]
[1751331638250,25.08346,2494.8,2494.7,2.9815]
[1751331639342,25.08346,2494.8,2494.7,0.8015]
[1751331640249,25.08346,2494.8,2494.7,3.0615]
[1751331640448,24.282,2494.8,2494.7,3.0615]
[1751331641662,24.282,2494.8,2494.7,0.8015]
[1751331641863,24.282,2494.8,2494.7,2.8415]
[1751331642053,25.08346,2494.8,2494.7,2.8415]
[1751331642459,25.08346,2494.8,2494.7,0.8015]
[1751331643361,25.08346,2494.8,2494.7,2.8615]
[1751331643756,25.08346,2494.8,2494.7,0.8015]
[1751331643956,25.08346,2494.8,2494.7,2.8915]
[1751331644362,25.08346,2494.8,2494.7,3.1415]
[1751331644761,25.08346,2494.8,2494.7,0.41058035]
[1751331644967,25.08346,2494.8,2494.7,2.64058035]
[1751331645463,25.08346,2494.8,2494.7,0.41058035]
[1751331645858,25.08346,2494.8,2494.7,2.80058035]
[1751331646358,25.08346,2494.8,2494.7,2.50058035]
[1751331646760,24.282,2494.8,2494.7,2.77058035]
[1751331647165,25.08346,2494.8,2494.7,2.77058035]
[1751331647360,24.282,2494.8,2494.7,2.77058035]
[1751331647662,25.08346,2494.8,2494.7,2.77058035]
[1751331647864,7.19336123,2495.0,2494.9,0.80143]
[1751331648065,24.273,2495.0,2494.9,4.66648232]
[1751331648559,27.47792852,2495.0,2494.9,5.97588232]
[1751331649461,3.20492852,2495.1,2495.0,0.8014]
[1751331649659,3.20492852,2495.2,2495.1,0.80137]
[1751331649863,3.20492852,2495.2,2495.1,3.44642232]
[1751331650166,3.20492852,2495.2,2495.1,4.87162232]
[1751331650465,3.20492852,2495.3,2495.2,0.80133]
[1751331650668,3.20492852,2495.3,2495.2,7.40653]
[1751331650867,3.20492852,2495.4,2495.3,0.8013]
[1751331651066,3.20492852,2495.4,2495.3,5.9365]
[1751331651456,3.20492852,2495.5,2495.4,0.80127]
[1751331651661,4.00616852,2495.5,2495.4,4.73127]
[1751331651864,4.00616852,2495.5,2495.4,4.58127]
[1751331651865,28.27716852,2495.5,2495.4,4.58127]
[1751331652264,28.27716852,2495.5,2495.4,3.78]
[1751331653266,28.27716852,2495.5,2495.4,4.58127]
[1751331653463,25.07224,2495.5,2495.4,4.58127]
[1751331655363,0.80124,2495.5,2495.4,4.58127]
[1751331655568,24.269,2495.5,2495.4,4.58127]
[1751331656368,25.07024,2495.5,2495.4,4.58127]
[1751331656664,25.06824,2495.5,2495.4,4.58127]
[1751331656865,25.06824,2495.5,2495.4,0.80127]
[1751331658167,25.06824,2495.5,2495.4,2.96127]
[1751331658567,0.80124,2495.5,2495.4,2.96127]
[1751331658767,1.79162,2495.6,2495.5,0.80124]
[1751331658964,26.05862,2495.6,2495.5,0.80124]
[1751331659166,26.05862,2495.6,2495.5,2.42124]
[1751331659465,26.05862,2495.6,2495.5,0.80124]
[1751331661665,26.05862,2495.6,2495.4,1.78975]
[1751331661666,0.80124,2495.5,2495.4,1.78975]
[1751331661876,0.80124,2495.5,2495.4,1.78977]
[1751331662368,0.80124,2495.5,2495.4,0.9885]
[1751331662561,25.06624,2495.5,2495.4,0.9885]
[1751331662778,25.06624,2495.5,2495.4,1.78977]
[1751331663473,25.06624,2495.5,2495.4,3.84977]
[1751331663677,24.265,2495.5,2495.4,3.84977]
[1751331663879,25.06624,2495.5,2495.4,3.84977]
[1751331664371,24.265,2495.5,2495.4,3.84977]
[1751331664566,25.06624,2495.5,2495.4,3.84977]
[1751331665676,25.06424,2495.5,2495.4,3.84977]
[1751331670582,24.263,2495.5,2495.4,3.84977]
[1751331670782,1.79163,2495.6,2495.5,0.80124]
[1751331671081,26.05363,2495.6,2495.5,0.80124]
[1751331671477,26.05363,2495.6,2495.5,3.04124]
[1751331671677,26.05363,2495.6,2495.5,0.80124]
[1751331671880,26.05363,2495.6,2495.5,3.12124]
[1751331672080,26.05363,2495.6,2495.5,0.80124]
[1751331672282,1.79163,2495.6,2495.5,2.84124]
[1751331672486,26.05263,2495.6,2495.5,0.80124]
[1751331672988,26.05263,2495.6,2495.5,3.04124]
[1751331673279,26.05263,2495.6,2495.5,0.80124]
[1751331673484,26.05263,2495.6,2495.5,3.16124]
[1751331673681,26.05263,2495.6,2495.5,0.80124]
[1751331674083,26.05263,2495.6,2495.5,2.94124]
[1751331674489,25.2514,2495.6,2495.5,2.94124]
[1751331674787,26.05261,2495.6,2495.5,0.80124]
[1751331674986,26.05261,2495.6,2495.5,3.10124]
[1751331675287,26.05261,2495.6,2495.5,0.80124]
[1751331675587,26.05261,2495.6,2495.5,3.18124]
[1751331676485,25.2514,2495.6,2495.5,0.80124]
[1751331677089,26.05261,2495.6,2495.5,2.93124]
[1751331677284,26.05261,2495.6,2495.5,3.18124]
[1751331677483,25.2514,2495.6,2495.5,0.80124]
[1751331677788,25.2514,2495.6,2495.1,3.2078]
[1751331678091,2.26505232,2495.3,2495.2,0.80133]
[1751331678281,2.26505232,2495.3,2495.2,0.82133]
[1751331678781,3.22095232,2495.3,2495.2,0.82133]
[1751331679587,0.9559,2495.3,2495.2,0.82133]
[1751331684292,4.02225232,2495.3,2495.2,0.82133]
[1751331684888,4.02225232,2495.3,2495.2,0.02]
[1751331685084,0.80139,2495.1,2495.0,0.80136]
[1751331685286,0.80139,2495.1,2495.0,0.82136]
[1751331685987,26.45195,2495.2,2495.1,0.80137]
[1751331686388,26.45195,2495.2,2495.1,2.84137]
[1751331686691,25.06135,2495.2,2495.1,0.80137]
[1751331687293,25.06135,2495.2,2495.1,2.86137]
[1751331687891,25.06135,2495.2,2495.1,0.80137]
[1751331688092,25.06135,2495.2,2495.1,0.07]
[1751331688495,26.47025,2495.2,2495.1,0.07]
[1751331688789,0.8014,2495.0,2494.9,0.80141]
[1751331688995,0.8014,2495.0,2494.9,3.27141]
[1751331689391,1.7605,2495.0,2494.9,3.27141]
[1751331689694,1.7605,2495.0,2494.9,2.47]
[1751331690594,4.1913,2495.0,2494.9,2.47]
[1751331690796,4.1913,2495.0,2494.9,3.27143]
[1751331691187,4.1913,2495.0,2494.9,0.80143]
[1751331691592,4.1913,2495.0,2494.9,2.85143]
[1751331692093,4.1913,2495.0,2494.9,2.05]
[1751331695696,4.1913,2495.0,2494.9,2.85143]
[1751331695997,4.1913,2495.0,2494.9,2.05]
[1751331697198,0.80146,2494.8,2494.7,0.80147]
[1751331697400,25.07146,2494.8,2494.7,4.39147]
[1751331698390,25.07146,2494.8,2494.7,3.59]
[1751331698797,26.42976,2494.8,2494.7,3.59]
[1751331699901,25.07146,2494.8,2494.7,4.3915]
[1751331702804,25.07146,2494.8,2494.7,3.59]
[1751331703205,25.07146,2494.8,2494.7,4.3915]
[1751331703505,25.07146,2494.8,2494.7,2.33]
[1751331703706,0.8015,2494.7,2494.6,0.8015]
[1751331703896,1.7652,2494.7,2494.6,6.4715]
[1751331715311,1.7652,2494.7,2494.6,0.8015]
[1751331715512,4.03025232,2494.7,2494.6,2.8015]
[1751331716313,3.22875232,2494.7,2494.6,2.8015]
[1751331716514,4.03025232,2494.7,2494.6,2.8015]
[1751331717311,3.22875232,2494.7,2494.6,2.8015]
[1751331717918,4.03025232,2494.7,2494.6,2.8015]
[1751331718415,3.22875232,2494.7,2494.6,2.8015]
[1751331718615,8.67778084,2495.1,2494.7,0.8015]
[1751331718812,0.9636,2495.2,2495.1,0.80137]
[1751331719011,3.20492852,2495.4,2495.3,0.8013]
[1751331719218,27.47092852,2495.4,2495.3,2.4713]
[1751331719618,27.47092852,2495.4,2495.3,3.8774]
[1751331720412,3.20492852,2495.4,2495.3,3.8774]
[1751331720613,27.47092852,2495.4,2495.3,3.8774]
[1751331721221,3.20492852,2495.4,2495.3,3.8774]
[1751331721417,6.41272852,2495.5,2495.4,0.80127]
[1751331721617,6.41272852,2495.5,2495.4,7.91737]
[1751331721816,30.67772852,2495.5,2495.4,7.91737]
[1751331722413,6.41272852,2495.5,2495.4,7.91737]
[1751331722723,30.67672852,2495.5,2495.4,7.91737]
[1751331723419,24.264,2495.5,2495.4,7.1161]
[1751331723624,24.264,2495.5,2495.4,7.91737]
[1751331724624,2.26505232,2495.7,2495.6,0.80121]
[1751331724821,24.264,2495.7,2495.6,3.80121]
[1751331725925,25.06517,2495.7,2495.6,3.80121]
[1751331726125,27.33022232,2495.7,2495.6,3.80121]
[1751331726327,26.52905232,2495.7,2495.6,3.80121]
[1751331726527,27.33022232,2495.7,2495.6,3.80121]
[1751331727126,3.06622232,2495.7,2495.6,3.80121]
[1751331727427,27.32822232,2495.7,2495.6,3.80121]
[1751331727727,25.06317,2495.7,2495.6,3.80121]
[1751331728622,25.06317,2495.7,2495.6,0.80121]
[1751331728830,25.06317,2495.7,2495.6,2.83121]
[1751331729021,0.80117,2495.7,2495.6,0.80121]
[1751331729328,25.06117,2495.7,2495.6,3.12121]